Cogmind - Beta 15 @@@ ROGUE MODE // 2025.05.13 @ 23:43:40 Player: celerysam Result: Destroyed by Y-72 Warden with Quantum Rifle Performance ------------- Evolutions (8) 4000 Regions Visited (11) 2200 Robots Destroyed (58) 290 Value Destroyed (1865) 1865 Prototype IDs (21) 420 Alien Tech Used (0) 0 Bonus (821) 821 TOTAL SCORE: 9596 Bonus ------- Follower Combat Kills 41 Registered with UFD 300 Met Optimus in HQ 500 Friendly Fire -20 Cogmind --------- Core Integrity 0/1450 Matter 176/300 Energy 98/100 System Corruption 3% Temperature Cool (22) Movement Hovering (70) Location -2/Research Parts ------- > --- POWER (3) -------- (None) > --- PROPULSION (8) --- Improved Gyrokinetic Inverter > --- UTILITY (8) ------ Improved Melee Analysis Suite > --- WEAPON (4) ------- (None) > --- INVENTORY (5) ---- Compact HERF Cannon Micro-nuke Launcher Neutron Missile Launcher Advanced Datajack Peak State ------------ > --- POWER ------------ Micro Antimatter Reactor Light Quantum Reactor > --- PROPULSION ------- Field Propulsion Array Field Propulsion Array Impulse Thruster Array > --- UTILITY ---------- Advanced Targeting Computer Improved Melee Analysis Suite Advanced Target Analyzer Advanced Point Defense System > --- WEAPON ----------- Enhanced Quantum Rifle Enhanced Hardcell Cannon Enhanced Force Lance > --- INVENTORY -------- Field Propulsion Array Matter Compressor Improved Phase Shifter Neutron Missile Launcher [Rating: 112] Favorites ----------- Power Ion Engine Engine Ion Engine Power Core Light Fission Core Reactor Micro Antimatter Reactor Propulsion Light Treads Treads Light Treads Leg Aluminum Leg Wheel Compact Wheel Hover Unit Airjet Flight Unit Cooled Cesium-ion Thruster Utility Large Storage Unit Device V3-11A's Pendant Storage Large Storage Unit Processor Targeting Computer Hackware Hacking Suite Protection Layered Light Armor Plating Weapon Powered Cannon Energy Gun EM Pulse Gun Energy Cannon Powered Cannon Ballistic Gun Hypervelocity Gauss Rifle Ballistic Cannon Improved Light Cannon Launcher Grenade Launcher Special Weapon Advanced Remote Datajack Impact Weapon Flail Slashing Weapon Companion Sword Piercing Weapon Enhanced Force Lance Special Melee Weapon Advanced Datajack Build | -11 -10 -10 -7 -5 -5 -5 -4 -3 -3 -3 -2 ------- Run | Yrd Mat Sub Scr Fac Upp Upp Fac Res Arm Lab Res Slots Evolved 16 | . . . . 10 . . 2 2 . . 2 Power 2 | . . . . 1 . . 1 . . . . Propulsion 6 | . . . . 4 . . . 1 . . 1 Utility 6 | . . . . 3 . . 1 1 . . 1 Weapon 2 | . . . . 2 . . . . . . . Parts Attached 130 | 6 11 9 6 36 5 2 11 15 22 2 5 Power 18 | 1 1 2 . 5 2 . . 2 4 . 1 Engine 8 | 1 1 2 . 3 1 . . . . . . Core 4 | . . . . 2 1 . . 1 . . . Reactor 6 | . . . . . . . . 1 4 . 1 Propulsion 45 | 2 3 2 3 14 1 . 5 5 7 1 2 Treads 3 | . 3 . . . . . . . . . . Leg 3 | 2 . . . 1 . . . . . . . Wheel 5 | . . 2 3 . . . . . . . . Hover 16 | . . . . 7 1 . 2 5 . . 1 Flight 18 | . . . . 6 . . 3 . 7 1 1 Utility 32 | 1 3 1 3 7 2 1 5 3 5 . 1 Device 16 | . . 1 . 4 1 . 3 2 4 . 1 Storage 4 | 1 2 . . 1 . . . . . . . Processor 8 | . 1 . 2 . 1 . 2 1 1 . . Hackware 2 | . . . . 2 . . . . . . . Protection 2 | . . . 1 . . 1 . . . . . Artifact . | . . . . . . . . . . . . Weapon 35 | 2 4 4 . 10 . 1 1 5 6 1 1 Energy Gun 11 | 2 . . . 4 . . . 2 3 . . Energy Cannon 2 | . . 1 . . . . . . . . 1 Ballistic Gun 1 | . . . . . . . . 1 . . . Ballistic Cannon 7 | . 3 1 . 2 . . . . 1 . . Launcher 5 | . 1 . . 2 . . . . 1 1 . Special Weapon 4 | . . 1 . 1 . . . 2 . . . Impact Weapon 1 | . . 1 . . . . . . . . . Slashing Weapon 2 | . . . . 1 . 1 . . . . . Piercing Weapon 1 | . . . . . . . . . 1 . . Special Melee Weapon 1 | . . . . . . . 1 . . . . Unidentified Prototypes 10 | . . 1 . 6 . . . 1 1 . 1 Parts Lost 82 | . . 2 . 26 . 3 12 5 24 . 10 Power 14 | . . . . 6 . . 2 1 3 . 2 Propulsion 32 | . . 1 . 11 . 1 5 3 8 . 3 Utility 21 | . . . . 6 . 1 4 . 5 . 5 Weapon 15 | . . 1 . 3 . 1 1 1 8 . . Highest Loss Streak 11 | . . 1 . 8 . 3 11 5 11 . 9 To Critical Strikes . | . . . . . . . . . . . . Average Backups 12 | 4 13 14 14 5 5 4 4 4 3 2 3 Power 1 | . 1 1 1 . . 1 . . . . . Propulsion 2 | 2 3 3 2 . . . . . . . . Utility 2 | . 3 3 3 . . 1 2 3 2 . . Weapon 4 | . 4 5 6 3 4 2 1 . . 1 2 Tool/Special . | . . . . . . . . . . . . Unused Backups 12 | . 3 1 3 3 . . 1 . . . 1 Power 1 | . . 1 . . . . . . . . . Propulsion 2 | . 1 . 1 . . . . . . . . Utility 2 | . . . 1 . . . 1 . . . . Weapon 5 | . 2 . 1 2 . . . . . . . Tool/Special 2 | . . . . 1 . . . . . . 1 Average Slot Usage (%) 82 | . 99 94 85 59 40 44 60 37 45 43 25 Engine 15 | . 14 17 25 7 2 5 4 . . . . Treads 7 | . 24 8 . . . . . . . . . Wheel 12 | . . 17 25 1 . . . . . . . Hover 1 | . . . . 15 . 5 5 9 2 . . Flight 1 | . . . . 3 17 11 13 5 10 9 5 Device 4 | . . 8 1 6 6 5 9 5 5 8 3 Storage 10 | . 14 13 12 1 5 2 . . . 4 3 Processor 7 | . 13 5 5 3 . 5 9 4 12 14 9 Protection 1 | . . . 3 2 . . 4 . . . . Energy Gun 1 | . 4 . . . . . . . 2 . . Energy Cannon 4 | . . 3 12 2 . . . . . . . Ballistic Cannon 8 | . 19 17 . 1 . . . . . . . Peak Build Rating 112 | 6 9 24 30 75 52 52 89 92 112 88 86 Average Rating 25 | 4 7 15 25 50 39 36 67 47 80 77 45 On Entrance 37 | . 6 9 24 30 36 52 34 35 92 62 74 Naked Turns . | . . . . . . . . . . . . Heaviest Build 48 | 14 32 40 43 48 20 15 26 36 45 25 25 Greatest Support 53 | 20 40 40 28 52 18 18 27 47 53 31 31 Greatest Overweight (x) 4 | 1 . 1 1 4 1 1 4 2 3 . 1 Average Overweight (x) . | . . . 1 . . . . . . . . Largest Inventory Capacity 15 | 8 15 15 15 15 5 5 5 5 5 5 5 Average Capacity 12 | 6 14 15 15 5 5 5 5 5 5 5 5 Most Carried 15 | 6 15 15 15 14 5 5 5 5 5 3 5 Average Carried 12 | 5 13 14 14 5 4 4 4 4 4 2 3 Final Capacity 15 | 8 15 15 15 5 5 5 5 5 5 5 5 Final Carried 15 | 6 15 15 15 5 5 5 5 4 5 3 4 Class Distribution -------------------- 84% | Mutant 10% | Sprinter 3% | Tank Dominant Class ---------------- Mutant | -10/Materials Mutant | -10/Subcaves Mutant | -7/Scraptown Tank | -5/Factory Sprinter | -5/Upper Caves Sprinter | -5/Upper Caves Sprinter | -4/Factory Sprinter | -3/Research Sprinter | -3/Armory Sprinter | -3/Lab Mutant | -2/Research Resources | -11 -10 -10 -7 -5 -5 -5 -4 -3 -3 -3 -2 ----------- Run | Yrd Mat Sub Scr Fac Upp Upp Fac Res Arm Lab Res Matter Collected 2100 | 214 271 309 228 305 389 90 115 115 59 . 5 Remotely . | . . . . . . . . . . . . Salvage Created 1945 | . 398 247 . 591 230 90 125 130 134 . . Parts 140 | . 42 13 . 41 9 4 6 11 14 . . Haulers Intercepted 4 | . 2 . . 1 . . 1 . . . . Recyclers Shooed . | . . . . . . . . . . . . Parts Field Recycled . | . . . . . . . . . . . . Retrieved Matter . | . . . . . . . . . . . . Parts Self-Destructed 19 | . . 13 . . . 6 . . . . . Prevented . | . . . . . . . . . . . . Kills | -11 -10 -10 -7 -5 -5 -5 -4 -3 -3 -3 -2 ------- Run | Yrd Mat Sub Scr Fac Upp Upp Fac Res Arm Lab Res Combat Hostiles Destroyed 45 | . 12 10 . 14 . 1 . 2 6 . . Melee 7 | . . . . 5 . 1 . 1 . . . Guns 5 | . 3 . . . . . . 1 1 . . Cannons 20 | . 6 9 . 5 . . . . . . . AOE 13 | . 3 1 . 4 . . . . 5 . . Classes Destroyed 9 | . 5 2 . 1 . . . 1 . . . Worker 1 | . 1 . . . . . . . . . . Builder 2 | . . . . 2 . . . . . . . Hauler 4 | . 2 . . 1 . . 1 . . . . Watcher 6 | . 3 . . 2 . . 1 . . . . Swarmer 24 | . 6 . . 12 . . . . 6 . . Grunt 10 | . 6 4 . . . . . . . . . Sentry 4 | . . 1 . 2 . 1 . . . . . Programmer 2 | . . . . . . . . 2 . . . Subdweller 5 | . . 5 . . . . . . . . . Best Kill Streak 5 | . 3 2 . 5 . 1 1 1 4 . . Combat Bots Only 4 | . 3 2 . 4 . 1 . 1 4 . . Max Kills in Single Turn 4 | . 2 1 . 3 . 1 1 1 4 . . Gunslinging 1 | . 1 . . . . . . . . . . Exploded 4 | . 2 1 . 2 . . . . 4 . . Melee 1 | . . . . 1 . 1 . 1 . . . Uniques/NPCs Destroyed . | . . . . . . . . . . . . Combat | -11 -10 -10 -7 -5 -5 -5 -4 -3 -3 -3 -2 -------- Run | Yrd Mat Sub Scr Fac Upp Upp Fac Res Arm Lab Res Hostile Shots Fired 793 | . 31 60 . 275 . 13 21 40 211 . 142 Missed 300 | . 8 21 . 98 . 5 5 11 88 . 64 Intercepted 1 | . . . . . . . . . 1 . . Hits 493 | . 23 39 . 177 . 8 16 29 123 . 78 Melee 7 | . . . . . . . 7 . . . . Projectile 486 | . 23 39 . 177 . 8 9 29 123 . 78 AOE 4 | . . . . . . . . . 4 . . Critical Strikes 23 | . 1 1 . 10 . 1 4 1 3 . 2 Damage Taken 11222 | . 304 616 . 3298 . 160 932 684 3132 7 2089 Core 4070 | . 19 93 . 910 . 48 260 215 1061 7 1457 Absorbed by Shields . | . . . . . . . . . . . . Core Remaining (%) 47 | 100 . . 55 . . 4 77 . . 1 . Volleys Fired 115 | . 27 39 . 28 . . . 2 13 5 1 Largest 3 | . 2 2 . 2 . . . 1 3 2 1 Hottest 179 | . 80 66 . 95 . . . 33 179 129 80 Shots Fired 199 | . 54 67 . 50 . . . 3 18 6 1 Gun 34 | . 8 . . 6 . . . 3 17 . . Cannon 147 | . 43 62 . 42 . . . . . . . Launcher 18 | . 3 5 . 2 . . . . 1 6 1 Special . | . . . . . . . . . . . . Kinetic 125 | . 43 55 . 20 . . . 3 4 . . Thermal 39 | . . 7 . 26 . . . . 6 . . Explosive 16 | . 3 5 . 2 . . . . 1 5 . Electromagnetic 19 | . 8 . . 2 . . . . 7 1 1 Robot Hit Streak 12 | . 5 12 . 4 . . . 1 2 . . Robot Miss Streak 6 | . 3 2 . 5 . . . 2 6 . 4 Penetration Max . | . . . . . . . . . . . . Secondary Targets 1 | . 1 . . . . . . . . . . Max Gunslinging Chain 1 | . 1 . . . . . . . . . . Shots Hit Robots 137 | . 28 37 . 34 11 5 5 11 6 . . Core Hits 92 | . 21 16 . 27 5 2 2 3 8 . 8 Critical Kills . | . . . . . . . . . . . . Critical Parts Destroyed . | . . . . . . . . . . . . Critical Strikes 6 | . 2 2 . 1 . . . 1 . . . Blast 5 | . 2 2 . 1 . . . . . . . Sever 1 | . . . . . . . . 1 . . . Melee Attacks 93 | . . 1 . 23 11 5 20 23 10 . . Impact 1 | . . 1 . . . . . . . . . Slashing 82 | . . . . 23 11 5 20 23 . . . Piercing 10 | . . . . . . . . . 10 . . Sneak Attacks 4 | . . . . 1 . . 1 2 . . . Combat Hostiles 2 | . . . . . . . . 2 . . . Follow-up Attacks . | . . . . . . . . . . . . Damage Inflicted 5898 | . 599 917 . 1715 937 205 318 519 509 . 179 Guns 269 | . 53 . . 85 . . . 7 124 . . Cannons 1899 | . 389 733 . 777 . . . . . . . Explosions 1234 | . 157 184 . 343 . . . . 371 . 179 Melee 2482 | . . . . 510 937 205 318 512 . . . Ramming 14 | . . . . . . . . . 14 . . Kinetic 1338 | . 389 693 . 229 . . . 7 20 . . Thermal 744 | . . 40 . 633 . . . . 71 . . Explosive 1044 | . 157 184 . 343 . . . . 360 . . Electromagnetic 276 | . 53 . . . . . . . 44 . 179 Impact . | . . . . . . . . . . . . Slashing 2482 | . . . . 510 937 205 318 512 . . . Piercing . | . . . . . . . . . . . . Highest Corruption 14 | . . . . 14 14 14 5 6 10 10 3 Average Corruption 8 | . . . . 7 14 14 5 4 6 10 1 Corruption Purged . | . . . . . . . . . . . . Corruption Blocked . | . . . . . . . . . . . . Effects 34 | . . . . 7 9 3 1 5 8 1 . Message Errors 9 | . . . . 1 4 1 . . 3 . . Matter Fused 8 | . . . . 3 3 2 . . . . . Heat Flow Errors 2 | . . . . . 1 . . 1 . . . Energy Discharges 8 | . . . . 2 1 . 1 2 2 . . Parts Rejected 1 | . . . . . . . . . 1 . . Data Loss (major) 2 | . . . . . . . . 1 . 1 . Misfires 1 | . . . . . . . . 1 . . . Misdirections 1 | . . . . 1 . . . . . . . Weapon Failures 2 | . . . . . . . . . 2 . . Overload Shots . | . . . . . . . . . . . . Overflow Damage 638 | . . . . 86 435 . 31 16 68 . 2 Projectiles 44 | . . . . 44 . . . . . . . Explosions 78 | . . . . 8 . . . . 68 . 2 Melee 516 | . . . . 34 435 . 31 16 . . . Knockbacks 5 | . . 3 . 2 . . . . . . . Impact . | . . . . . . . . . . . . Kinetic 5 | . . 3 . 2 . . . . . . . Secondary . | . . . . . . . . . . . . Self-Inflicted Damage 226 | . 28 14 . 37 . . . . 121 7 19 Shots 8 | . 1 1 . 1 . . . . 2 1 2 Rammed 1 | . . . . . . . . . 1 . . Targets Rammed 1 | . . . . . . . . . 1 . . Kicked . | . . . . . . . . . . . . Crushed . | . . . . . . . . . . . . Highest Temperature 346 | . 72 14 . 44 196 . . 150 102 36 346 Average Temperature 36 | . 22 6 . 11 111 . . 91 36 19 172 Received Heat Transfer 694 | . 75 213 . 45 . 63 18 . 154 . 126 Siege Activations . | . . . . . . . . . . . . Martial Activations . | . . . . . . . . . . . . Shielding Activations . | . . . . . . . . . . . . Robots Disrupted 1 | . . . . . . . . . . . 1 Combat Hostiles 1 | . . . . . . . . . . . 1 Robots Corrupted . | . . . . . . . . . . . . Combat Hostiles . | . . . . . . . . . . . . Parts Fried . | . . . . . . . . . . . . Impact Corruptions . | . . . . . . . . . . . . Robots Melted . | . . . . . . . . . . . . Combat Hostiles . | . . . . . . . . . . . . Parts Melted . | . . . . . . . . . . . . Heat Transferred 235 | . . . . 111 . . . . 124 . . Parts Sabotaged . | . . . . . . . . . . . . Parts Stolen . | . . . . . . . . . . . . Parts Stripped . | . . . . . . . . . . . . Power Chain Reactions 1 | . . . . . . . . . 1 . . Alert | -11 -10 -10 -7 -5 -5 -5 -4 -3 -3 -3 -2 ------- Run | Yrd Mat Sub Scr Fac Upp Upp Fac Res Arm Lab Res Maximum Alert Level 2 | . . . . 1 . . . . 2 . . Low Security (%) 94 | 100 100 . . 98 . . 100 100 51 . 100 Level 1 4 | . . . . 1 . . . . 41 . . Level 2 . | . . . . . . . . . 7 . . Level 3 . | . . . . . . . . . . . . Level 4 . | . . . . . . . . . . . . Level 5 . | . . . . . . . . . . . . High Security . | . . . . . . . . . . . . Max Security . | . . . . . . . . . . . . Peak Influence 414 | . 111 . . 206 . . 67 45 414 . 80 Initial 7 | . . . . . . . . 7 . . . Average 52 | . 28 . . 98 . . 26 7 160 . 23 Influence Increases 2452 | . 357 383 . 621 . 20 126 94 656 . 195 Destroy 0b10 Robot/C 920 | . 240 200 . 300 . 20 . 40 120 . . Destroy 0b10 Robot/NC 65 | . 30 . . 25 . . 10 . . . . Destroy Leader 158 | . 50 20 . 54 . . 4 10 20 . . Allied During Kill 49 | . . 43 . 6 . . . . . . . Disable Machine 90 | . 15 . . 15 . . . . 60 . . Destroy Structure 180 | . 22 . . 56 . . 22 14 66 . . Partial Spotted 75 | . . . . 15 . . 15 15 30 . . Lose Combat Pursuer 915 | . . 120 . 150 . . 75 15 360 . 195 Influence Decreases 2397 | . 322 321 97 518 103 20 111 109 265 391 140 Entered New Map 553 | . . 18 97 . 39 . . 8 . 391 . Time Decay 1172 | . 322 253 . 229 64 20 58 56 120 . 50 Lost Part 603 | . . 10 . 260 . . 53 45 145 . 90 Lost Ally 69 | . . 40 . 29 . . . . . . . Squads Dispatched 13 | . 3 . . 3 . . 2 1 1 . 3 Investigation 2 | . 2 . . . . . . . . . . Extermination 4 | . . . . 1 . . . 1 1 . 1 Reinforcement 6 | . 1 . . 2 . . 1 . . . 2 Assault . | . . . . . . . . . . . . Garrison 1 | . . . . . . . 1 . . . . Intercept . | . . . . . . . . . . . . Searches Triggered . | . . . . . . . . . . . . Construction Impeded . | . . . . . . . . . . . . Haulers Reinforced . | . . . . . . . . . . . . Active Scanning Responses . | . . . . . . . . . . . . Cargo Convoy Interrupts . | . . . . . . . . . . . . Stealth | -11 -10 -10 -7 -5 -5 -5 -4 -3 -3 -3 -2 --------- Run | Yrd Mat Sub Scr Fac Upp Upp Fac Res Arm Lab Res Distress Signals 3 | . . . . . . . . . 3 . . Communications Jammed . | . . . . . . . . . . . . Distress Signals . | . . . . . . . . . . . . Times Spotted 168 | . 19 24 . 37 . 2 10 7 42 . 27 Peak Tracking Total 17 | . 4 6 . 9 . 1 4 3 17 . 12 Tactical Retreats 25 | . . 1 . 7 . . 2 1 10 . 4 Traps | -11 -10 -10 -7 -5 -5 -5 -4 -3 -3 -3 -2 ------- Run | Yrd Mat Sub Scr Fac Upp Upp Fac Res Arm Lab Res Traps Triggered 4 | . 3 . . . . . . . 1 . . Indirectly . | . . . . . . . . . . . . Trap Hack Attempts . | . . . . . . . . . . . . Triggered . | . . . . . . . . . . . . Disarmed . | . . . . . . . . . . . . Reprogrammed . | . . . . . . . . . . . . Reused . | . . . . . . . . . . . . Traps Extracted . | . . . . . . . . . . . . Installed 1 | . . 1 . . . . . . . . . Triggered . | . . . . . . . . . . . . Machines | -11 -10 -10 -7 -5 -5 -5 -4 -3 -3 -3 -2 ---------- Run | Yrd Mat Sub Scr Fac Upp Upp Fac Res Arm Lab Res Machines Disabled 9 | . 1 2 . 1 . . . . 4 1 . Max in Single Turn 1 | . 1 1 . 1 . . . . 1 1 . Machines Repaired . | . . . . . . . . . . . . Machines Dismantled . | . . . . . . . . . . . . Machines Sabotaged . | . . . . . . . . . . . . Overloaded Fab Kills . | . . . . . . . . . . . . Hacking | -11 -10 -10 -7 -5 -5 -5 -4 -3 -3 -3 -2 --------- Run | Yrd Mat Sub Scr Fac Upp Upp Fac Res Arm Lab Res Machines Accessed 14 | . 2 1 8 1 . . . 1 1 . . Terminals 3 | . 2 . . . . . . . 1 . . Fabricators 2 | . . . . 1 . . . 1 . . . Repair Stations . | . . . . . . . . . . . . Recycling Units . | . . . . . . . . . . . . Scanalyzers . | . . . . . . . . . . . . Garrison Access . | . . . . . . . . . . . . Total Hacks 37 | . 2 1 30 1 . . . 2 1 . . Successful 36 | . 2 1 30 1 . . . 1 1 . . Failed 1 | . . . . . . . . 1 . . . Catastrophic . | . . . . . . . . . . . . Database Lockouts . | . . . . . . . . . . . . Manual 3 | . 1 . . . . . . 1 . 1 . Terminals 3 | . 2 . . . . . . . 1 . . Fabricators 3 | . . . . 1 . . . 2 . . . Repair Stations . | . . . . . . . . . . . . Recycling Units . | . . . . . . . . . . . . Scanalyzers . | . . . . . . . . . . . . Garrison Access . | . . . . . . . . . . . . Terminal Hacks 33 | . 1 1 30 . . . . . 1 . . Record 26 | . . . 26 . . . . . . . . Robot Analysis 3 | . . . 3 . . . . . . . . Open Door 1 | . . . 1 . . . . . . . . Alert Level 2 | . 1 . . . . . . . 1 . . Proto ID Catalog 1 | . . 1 . . . . . . . . . Fabricator Hacks 2 | . . . . 1 . . . 1 . . . Network Status 2 | . . . . 1 . . . 1 . . . Repair Station Hacks . | . . . . . . . . . . . . Recycling Unit Hacks . | . . . . . . . . . . . . Scanalyzer . | . . . . . . . . . . . . Garrison Access Hacks . | . . . . . . . . . . . . Unauthorized Hacks 1 | . 1 . . . . . . . . . . Terminals 1 | . 1 . . . . . . . . . . Botnet 1 | . 1 . . . . . . . . . . Fabricators . | . . . . . . . . . . . . Repair Stations . | . . . . . . . . . . . . Recycling Units . | . . . . . . . . . . . . Scanalyzers . | . . . . . . . . . . . . Garrison Access . | . . . . . . . . . . . . Data Cores Recovered . | . . . . . . . . . . . . Used . | . . . . . . . . . . . . Hacking Detections 1 | . . . . . . . . 1 . . . Full Trace Events . | . . . . . . . . . . . . Feedback Events . | . . . . . . . . . . . . Feedback Blocked . | . . . . . . . . . . . . Robot Schematics Acquired . | . . . . . . . . . . . . Robots Built . | . . . . . . . . . . . . Authchips . | . . . . . . . . . . . . Time . | . . . . . . . . . . . . Total Robot Build Rating . | . . . . . . . . . . . . Part Schematics Acquired . | . . . . . . . . . . . . Parts Built . | . . . . . . . . . . . . Authchips . | . . . . . . . . . . . . Time . | . . . . . . . . . . . . Total Part Build Rating . | . . . . . . . . . . . . Parts Repaired . | . . . . . . . . . . . . Time . | . . . . . . . . . . . . Parts Recycled . | . . . . . . . . . . . . Recycled Matter . | . . . . . . . . . . . . Retrieved Matter . | . . . . . . . . . . . . Retrieved Components . | . . . . . . . . . . . . Parts Scanalyzed . | . . . . . . . . . . . . Part Schematics Acquired . | . . . . . . . . . . . . Parts Damaged . | . . . . . . . . . . . . Bothacking | -11 -10 -10 -7 -5 -5 -5 -4 -3 -3 -3 -2 ------------ Run | Yrd Mat Sub Scr Fac Upp Upp Fac Res Arm Lab Res Used RIF Installer . | . . . . . . . . . . . . Robots Hacked . | . . . . . . . . . . . . Non-combat . | . . . . . . . . . . . . Combat . | . . . . . . . . . . . . Robot Hacks Applied . | . . . . . . . . . . . . Relay Couplers Released . | . . . . . . . . . . . . Fabnet Peak Effective % . | . . . . . . . . . . . . Robots Rewired . | . . . . . . . . . . . . Allies Hacked . | . . . . . . . . . . . . Hacks Repelled . | . . . . . . . . . . . . Allies | -11 -10 -10 -7 -5 -5 -5 -4 -3 -3 -3 -2 -------- Run | Yrd Mat Sub Scr Fac Upp Upp Fac Res Arm Lab Res Total Allies 7 | . . 7 . . . . . . . . . Largest Group 7 | . . 7 5 5 . . . . . . . Highest-Rated Group 133 | . . 133 95 95 . . . . . . . Highest-Rated Ally 19 | . . 19 19 19 . . . . . . . Total Orders . | . . . . . . . . . . . . Ally Attacks 48 | . . 38 . 10 . . . . . . . Total Damage 691 | . . 546 . 145 . . . . . . . Kills 7 | . . 5 . 2 . . . . . . . Allies Corrupted . | . . . . . . . . . . . . Allies Melted . | . . . . . . . . . . . . Intel | -11 -10 -10 -7 -5 -5 -5 -4 -3 -3 -3 -2 ------- Run | Yrd Mat Sub Scr Fac Upp Upp Fac Res Arm Lab Res Active Infowar (turns) 504 | . . . . 394 . . 63 11 36 . . Sensors 9 | . . . . . . . . 9 . . . Structural 394 | . . . . 394 . . . . . . . Cloaking 99 | . . . . . . . 63 . 36 . . ECM 2 | . . . . . . . . 2 . . . Robot Analysis Total 3 | . . . 3 . . . . . . . . Derelict Logs Recovered 7 | . . 1 3 . 3 . . . . . . Drone Launches . | . . . . . . . . . . . . Drone Recoveries . | . . . . . . . . . . . . Exploration | -11 -10 -10 -7 -5 -5 -5 -4 -3 -3 -3 -2 ------------- Run | Yrd Mat Sub Scr Fac Upp Upp Fac Res Arm Lab Res Turns Passed 8056 | 81 1505 2303 2337 592 230 70 198 247 302 38 153 Spaces Moved 7942 | 58 890 1805 2132 727 605 155 372 367 489 49 293 Core 126 | 10 . . . 12 . . 3 5 52 . 44 Treads 1152 | . 754 398 . . . . . . . . . Legs 192 | 48 136 . . 8 . . . . . . . Wheels 3557 | . . 1407 2132 18 . . . . . . . Hover 633 | . . . . 473 . 3 4 65 56 . 32 Flight 2282 | . . . . 216 605 152 365 297 381 49 217 Fastest Speed 23 | 50 120 105 105 23 29 29 27 32 31 39 39 Average Speed 88 | 108 153 117 106 51 31 33 31 37 40 39 44 Slowest Speed 250 | 120 160 240 110 250 109 140 250 150 205 39 100 Overloaded Moves 10 | . . . . . . . 10 . . . . Propulsion Burnouts . | . . . . . . . . . . . . Robots Hopped 9 | . . . . 1 . . . 2 . . 6 Potential Cave-ins 1 | . . . . . . . 1 . . . . Cave-ins Triggered 1 | . . . . . . . 1 . . . . Exploration Rate (%) 39 | 4 95 74 92 27 79 12 11 11 50 7 12 Regions Visited 11 Branch Regions 6 Pre-discovered Areas 2 | . . . 1 . 1 . . . . . . Known Exits Taken 4 | . . . 1 . 1 1 1 . . . . Unknown Exits Taken 7 | 1 1 1 . 1 . . . 1 1 1 . Scrap Searched 5 | . . . 4 . 1 . . . . . . Spaces Dug 39 | . . . . 6 . . 13 7 6 7 . Terrain Destroyed 168 | . 19 14 . 26 . . 13 7 42 47 . Melee 32 | . . . . 6 . . 13 7 6 . . Projectile 9 | . . . . 8 . . . . 1 . . AOE 127 | . 19 14 . 12 . . . . 35 47 . Terrain Rammed . | . . . . . . . . . . . . Walls Destroyed . | . . . . . . . . . . . . Machines Disabled . | . . . . . . . . . . . . Actions | -11 -10 -10 -7 -5 -5 -5 -4 -3 -3 -3 -2 --------- Run | Yrd Mat Sub Scr Fac Upp Upp Fac Res Arm Lab Res Total 8587 | 73 979 1919 2204 859 627 165 413 430 546 62 310 Wait 157 | 3 16 51 45 13 5 . . 18 1 . 5 Move 7916 | 57 889 1804 2131 724 604 154 371 363 488 48 283 Hop 6 | . . . . 1 . . . 1 . . 4 Pick Up 75 | 7 21 5 10 10 . 1 5 6 5 . 5 Fast Attach 66 | 5 . . 1 20 4 . 10 7 17 . 2 Attach 55 | 1 1 7 . 16 1 2 3 8 6 5 5 Detach 15 | . . 2 . 2 1 2 . 1 1 4 2 Swap 29 | . 10 5 6 5 1 . 1 . 1 . . Drop 58 | . 15 4 11 17 . 1 3 1 3 . 3 Fire 115 | . 27 39 . 28 . . . 2 13 5 1 Melee 93 | . . 1 . 23 11 5 20 23 10 . . Ram 1 | . . . . . . . . . 1 . . Kick . | . . . . . . . . . . . . Crush . | . . . . . . . . . . . . Escape Stasis . | . . . . . . . . . . . . Rewire . | . . . . . . . . . . . . Trap 1 | . . 1 . . . . . . . . . Miscellaneous . | . . . . . . . . . . . . Route ------- -11/Scrapyard -10/Materials (discovered 5 exits: [*Mat x3] / [*Min] / *Sub) -10/Subcaves (discovered 4 exits: [*Mat x2] / [*Rec] / *Scr) -7/Scraptown (discovered 2 exits: *Fac x2) -5/Factory -5/Upper Caves -5/Upper Caves -4/Factory (discovered 2 exits: *Res / Upp) -3/Research -3/Armory -3/Lab -2/Research History --------- Turn | Location | Event 2 | -11/Scrapyard | Met Revision 17 25 | -11/Scrapyard | Discovered new exit (range 16) 82 | -11/Scrapyard | Entered Materials 303 | -10/Materials | Build established: Mutant 550 | -10/Materials | Discovered new exit (range 3) 663 | -10/Materials | Discovered new exit (range 15) 1362 | -10/Materials | Discovered new exit (range 10) 1500 | -10/Materials | Discovered new exit (range 16) 1571 | -10/Materials | Discovered new exit (range 7) 1587 | -10/Materials | Entered Subcaves 1588 | -10/Subcaves | Approached by a straggling Scientist 1822 | -10/Subcaves | A swath of the cavern ceiling suddenly collapsed 2130 | -10/Subcaves | Shifting Twisted Machinery released Sub. Machine Gun 2199 | -10/Subcaves | Shifting Twisted Machinery released Piercing Trap 2247 | -10/Subcaves | A Subdweller sparked back to life 2247 | -10/Subcaves | A Subdweller sparked back to life 2396 | -10/Subcaves | Visited triangular shrine 2403 | -10/Subcaves | Found Prototype Device 2404 | -10/Subcaves | Identified V3-11A's Pendant 2409 | -10/Subcaves | Befriended Subdweller 2423 | -10/Subcaves | Scientist uncovered a shortcut to Scraptown 2667 | -10/Subcaves | Discovered new exit (range 9) 2674 | -10/Subcaves | Befriended Subdweller 2679 | -10/Subcaves | Befriended Subdweller 2711 | -10/Subcaves | Ambushed by Subdwellers from Twisted Machinery 2714 | -10/Subcaves | Befriended Subdweller 2714 | -10/Subcaves | Befriended Subdweller 2719 | -10/Subcaves | Befriended Subdweller 2719 | -10/Subcaves | Befriended Subdweller 2960 | -10/Subcaves | Discovered new exit (range 15) 3105 | -10/Subcaves | Visited 4L-MR0's lab 3120 | -10/Subcaves | Found Powered Cannon 3123 | -10/Subcaves | Attached Powered Cannon, gained temporary slot: Power 3259 | -10/Subcaves | Discovered new exit (range 13) 3265 | -10/Subcaves | Shifting Twisted Machinery released Mak. Spear 3491 | -10/Subcaves | A swath of the cavern ceiling suddenly collapsed 3890 | -10/Subcaves | Entered Scraptown 3890 | -7/Scraptown | Accompanied by 5 allies 3917 | -7/Scraptown | Heard Great Nut preacher, LISTEN AND RECITE! 4010 | -7/Scraptown | Visited Comm Corps 4032 | -7/Scraptown | Visited Symbiants 4260 | -7/Scraptown | Delivered V3-11A's Pendant to T0-NE2 in exchange for information 4366 | -7/Scraptown | Visited Fellowship of the Rings 4409 | -7/Scraptown | Visited UFD Registry 4409 | -7/Scraptown | Registered with UFD as "Pipelauncher" 4444 | -7/Scraptown | Visited Sword Containment 4477 | -7/Scraptown | Visited Analyses Database 4511 | -7/Scraptown | Visited Junk Repository 4573 | -7/Scraptown | Received an X-ray algorithm 4657 | -7/Scraptown | Visited SPCMW 4873 | -7/Scraptown | Visited Chapter 10 4955 | -7/Scraptown | Visited Junk Repository 5167 | -7/Scraptown | Discovered new exit (range 9) 5182 | -7/Scraptown | Identified exit to Factory 5295 | -7/Scraptown | Scanned Subdweller tech in exchange for log data 5295 | -7/Scraptown | Learned Factory terminal intel 5296 | -7/Scraptown | Learned Factory emergency access door positions 5305 | -7/Scraptown | Learned location of Extension (-4) 5344 | -7/Scraptown | Visited Cave Peace 5477 | -7/Scraptown | Visited Curators Association 5505 | -7/Scraptown | Visited LU-1G1's Boring Crew 5631 | -7/Scraptown | Visited Supply Room 5690 | -7/Scraptown | Visited Scrap Suit Storage 5898 | -7/Scraptown | Visited Cartography Club 5956 | -7/Scraptown | Discovered exit to Factory (range 3) 6148 | -7/Scraptown | Met Optimus 6148 | -7/Scraptown | Accepted into 0bPrime 6227 | -7/Scraptown | Entered Factory 6227 | -5/Factory | Accompanied by 5 allies 6227 | -5/Factory | Evolved 10 slots: Power x1, Propulsion x4, Utility x3, Weapon x2 6229 | -5/Factory | Loaded intel: 26 terminal locations 6392 | -5/Factory | Lost 5 allies 6520 | -5/Factory | Lost 6 parts (3p2n1u) 6561 | -5/Factory | Lost 3 parts (1p1u1w) 6654 | -5/Factory | Lost 8 parts (1p3n3u1w) 6698 | -5/Factory | Core integrity fell below 50% 6727 | -5/Factory | System corruption reached 10% 6753 | -5/Factory | Core integrity fell below 20% 6771 | -5/Factory | Lost 5 parts (1p2n1u1w) 6806 | -5/Factory | Discovered new exit (range 15) 6819 | -5/Factory | Entered Upper Caves 6821 | -5/Upper Caves | Learned 8 Factory zone layouts 6919 | -5/Upper Caves | Discovered new exit (range 13) 7002 | -5/Upper Caves | Encountered a Warlord checkpoint 7003 | -5/Upper Caves | Learned location of Armory (-3) 7003 | -5/Upper Caves | Found DCF Scrap (15 items) 7034 | -5/Upper Caves | Build established: Sprinter 7048 | -5/Upper Caves | Identified exit to Upper Caves 7049 | -5/Upper Caves | Entered another Upper Caves area 7051 | -5/Upper Caves | Attracted the attention of an 0b10 checkpoint 7090 | -5/Upper Caves | Lost 3 parts (1n1u1w) 7102 | -5/Upper Caves | Spotted B-75 Beast 7107 | -5/Upper Caves | Discovered new exit (range 8) 7109 | -5/Upper Caves | Identified exit to Factory 7119 | -5/Upper Caves | Entered Factory 7119 | -4/Factory | Evolved 2 slots: Power x1, Utility x1 7120 | -4/Factory | Identified exit to Upper Caves 7120 | -4/Factory | Identified exit to Research 7220 | -4/Factory | Garrison activated, responded to threat 7294 | -4/Factory | Crushed by falling debris 7317 | -4/Factory | Entered Research 7317 | -3/Research | Evolved 2 slots: Propulsion x1, Utility x1 7340 | -3/Research | Lost 11 parts (2p5n3u1w) 7520 | -3/Research | Lost 5 parts (1p3n1w) 7550 | -3/Research | Discovered new exit (range 15) 7564 | -3/Research | Entered Armory 7619 | -3/Armory | Core integrity fell below 50% 7650 | -3/Armory | Lost 11 parts (1p4n2u4w) 7732 | -3/Armory | Core integrity fell below 20% 7759 | -3/Armory | Lost 6 parts (1p1n2u2w) 7778 | -3/Armory | Spotted B-86 Titan 7833 | -3/Armory | Found Gamma Bomb Array 7862 | -3/Armory | Discovered new exit (range 5) 7864 | -3/Armory | System corruption reached 10% 7866 | -3/Armory | Entered Lab 7869 | -3/Lab | Discovered new exit (range 9) 7874 | -3/Lab | Unable to decrypt terminal 7874 | -3/Lab | Ran an X-ray algorithm 7874 | -3/Lab | Unable to decrypt terminal 7893 | -3/Lab | Lost 7 parts (1p3n1u2w) 7904 | -3/Lab | Entered Research 7904 | -2/Research | Evolved 2 slots: Propulsion x1, Utility x1 8014 | -2/Research | Core integrity fell below 50% 8021 | -2/Research | Spotted B-90 Cyclops 8042 | -2/Research | Lost 9 parts (2p3n4u) 8052 | -2/Research | Core integrity fell below 20% 8057 | -2/Research | Destroyed by Y-72 Warden with Quantum Rifle Last Messages --------------- 07997_ Acquired 5 matter. 08007_ Impulse Thruster Array destroyed. 08007_ Knocked back. 08011_ Xenon Bombardment Thruster destroyed. 08011_ Matter Compressor destroyed. 08011_ Critical hit (Blast). 08011_ Knocked back. 08029_ B-90 Cyclops activates siege mode. 08033_ Acquired Imp. Gyrokinetic Inverter. 08037_ O-24 Administrator: "IFF HANDSHAKE FAILED. SECURING TERMINAL." 08039_ ALERT: Hostiles spotted, dispatching reinforcements to Terminal R016. 08046_ Penetrated by Slug. 08048_ Adv. Targeting Computer destroyed. 08048_ Penetrated by Slug. 08049_ ALERT: Potential suspicious activity detected, Programmers report to Research Zone 5T. 08056_ Acquired Micro-nuke Launcher. Map ----- +----------------------------------------------------+ | ?????????####+#?# #??????????# | | ?????????# #?# #??????????# | | ?????????# ### ###??????#######+## | | ?????????# # #??????# # | | ?????????# # T" #??????# ### | | ?????????# / " +??????# "" #?? | | ?????????# # #??????# """ #?? | | ?????????# # #??????# T" #?? | | ?????????# ## ######### """ #?? | | ?????????# ## # ## "" #?? | | ?????????####### / ## #?? | | ???????????????# # ## ?? #?? | | ???????????????# # #?#???#####?? | | ???????????????# #? #???????????? | | ???????????????# #? #???????????? | | ???????????????# #??#####???????????? | | ???????????????# #??????????????????? | | ???????????????# #??????????????????? | | ???????????????# #??????????????????? | | ???????????????# #??????????????????? | | ???????????????# #??????????????????? | | ???????????????# #???????????????? | | ?????????????### ###????????????????? | | ?????????????# ###+##???????????? | | ?????????????# ??????? | | ?????????????#@ ??????? | | ?????????????# ggYgg ??????? | | ?????????????# ???????? | | ?????????????# ???????? | | ?????????????# ###+#####????????? | | ?????????????####+####????????????????? | | ????????????????? ???????????????????? | | ????????????????? ???????????????????? | | ????????????????? ???????????????????? | | ?????????????????" ???????????????????? | | ??????????????????????????????????????? | | ??????????????????????????????????????? | | ??????????????????????????????????????? | | ??????????????????????????????????????? | | ??????????????????????????????????????? | | ??????????????????????????????????????? | | ?????????????????????????????? ?????? | | ????????????????????????????# ?????? | | ????????????????????????????# ?????? | | ????????????????????????????# ?????? | | ????????????????????????????# #????? | | ????????????????????????????# #????? | | ????????????????????????????# #????? | | ????????????????????????????# #????? | | ????????????????????????????# ###### | +----------------------------------------------------+ Best States ------------- Heat Dissipation 77 Energy Generation 54 Energy Capacity 550 Matter Stores 548 Matter Capacity 550 Sight Range 16 Robot Scan Range 16 Terrain Scan Density 10 Cloak Strength 3 Power Amplification 60 Armor Coverage 225 Point Defense Rating 240 Phase Shifting 10 Evasion (%) 74 Targeting Accuracy 8 Melee Accuracy 12 Target Analysis 8 Recoil Reduction 2 Offensive Hacking 10 Defensive Hacking 10 Item Schematics ----------------- None Robot Schematics ------------------ None Fabricated ------------ Nothing Repaired ---------- Nothing Alien Tech Used ----------------- None Achievements -------------- None Challenges ------------ None Game ------ Seed FlightFrostCapacitor Manual? 0 Play Time 02:10:00 Cumulative 249.7 hours Start 2025.05.12 @ 21:14:05 End 2025.05.13 @ 23:43:40 Sessions 3 Manual Loads 0 Difficulty Rogue Special Mode None Game No. 367 Rogue 367 Adventurer 0 Explorer 0 Win Type - Total 1 Types 1/0/0/0/0/0/0/0/0/0 Lore% 59 Gallery% 61 Achievement% 43 Wizard Run 0 Options --------- Layout 1 ASCII 0 Keyboard 0 Movement Mouse Keybinds 0 Fullscreen 2 Font 24/Smallcaps Map View 50x35 Zoom Use 0% Tactical HUD 1 Map Filters NONE Filters NONE Steam 1 RUN: 5361a16b-0828-4361-8b32-577a5e681214